bitfinex/quotes_ETHUSD_20240917
["timestamp","ask_amount","ask_price","bid_price","bid_amount"]
[1726590321661,4.20486,2378.2,2377.5,4.20607]
[1726590321864,0.51645181,2378.1,2377.6,4.20591]
[1726590322063,5.16437809,2378.3,2377.6,4.20591]
[1726590322064,0.95965809,2378.3,2377.6,4.20582]
[1726590322287,0.95965809,2378.3,2377.8,4.20553]
[1726590322489,1.42660847,2378.2,2377.8,4.20553]
[1726590322683,1.42660847,2378.2,2377.7,4.2057]
[1726590322884,1.42660847,2378.2,2377.8,4.20556]
[1726590323090,0.95965809,2378.3,2378.0,4.2052]
[1726590323404,0.95965809,2378.3,2377.9,4.20538]
[1726590323701,0.95965809,2378.3,2378.0,8.4104]
[1726590324003,0.0449813,2378.3,2378.1,4.20502]
[1726590324296,0.0449813,2378.3,2377.8,4.20548]
[1726590324595,0.0449813,2378.3,2377.8,4.20547]
[1726590324767,1.38010909,2378.3,2377.6,4.20575]
[1726590324965,4.20486,2378.2,2377.6,4.20575]
[1726590325165,4.20486,2378.2,2377.7,4.20573]
[1726590325373,4.20486,2378.2,2377.6,8.41158]
[1726590325568,0.55849691,2378.1,2377.6,4.20575]
[1726590325769,4.2055,2377.9,2377.4,4.20615]
[1726590326160,8.41102,2377.9,2377.2,4.20647]
[1726590326360,4.20549,2377.9,2377.3,4.20642]
[1726590326583,0.420549,2377.8,2377.4,4.20624]
[1726590326765,0.420549,2377.8,2377.4,8.41242]
[1726590327178,0.420549,2377.8,2377.4,4.20618]
[1726590327391,0.420549,2377.8,2377.6,4.20591]
[1726590327595,13.86595353,2378.1,2377.5,4.20608]
[1726590327792,4.20523,2378.0,2377.5,4.20608]
[1726590327993,7.42,2378.2,2377.7,4.20563]
[1726590328192,7.42,2378.2,2377.8,4.20545]
[1726590328714,7.42,2378.2,2377.6,4.20591]
[1726590328715,4.89718662,2378.1,2377.6,4.20591]
[1726590328895,10.26927475,2378.1,2377.6,4.20591]
[1726590329297,5.37208813,2378.1,2377.6,4.20591]
[1726590329621,5.37208813,2378.1,2377.6,4.20583]
[1726590329622,5.37200813,2378.1,2377.6,4.20583]
[1726590329937,4.20522,2378.0,2377.5,4.20609]
[1726590330137,4.20522,2378.0,2377.4,4.20621]
[1726590330138,5.23232748,2377.9,2377.4,4.20621]
[1726590330279,5.23232748,2377.9,2377.1,3.0]
[1726590330280,1.02693748,2377.9,2377.6,4.20582]
[1726590330923,1.02693748,2377.9,2377.4,4.2061]
[1726590331119,4.20524,2378.0,2377.4,4.2061]
[1726590331311,4.20548,2377.9,2377.4,4.2061]
[1726590331823,14.91448497,2378.1,2377.5,4.20607]
[1726590331974,8.41053,2378.0,2377.5,4.20607]
[1726590332177,4.20557,2377.8,2377.3,7.20631]
[1726590332378,5.046649,2377.8,2377.4,4.20626]
[1726590332791,0.841079,2377.8,2377.4,4.20626]
[1726590332977,0.841079,2377.8,2377.5,4.20609]
[1726590333178,4.20535,2378.0,2377.6,4.20591]
[1726590333419,1.60703835,2378.1,2377.3,3.0]
[1726590333671,4.20573,2377.8,2377.3,7.20643]
[1726590334023,4.20573,2377.8,2377.3,4.20643]
[1726590334387,10.70928497,2378.1,2376.5,5.0]
[1726590334597,4.20572,2377.8,2377.3,4.20636]
[1726590334998,10.2236385,2378.0,2377.3,4.20636]
[1726590335202,4.20539,2377.9,2377.5,4.20609]
[1726590335396,4.20557,2377.8,2377.3,8.41265]
[1726590335597,0.420557,2377.7,2377.3,4.2063]
[1726590335828,4.626307,2377.7,2377.3,4.2063]
[1726590336140,4.20627,2377.5,2377.0,4.2069]
[1726590336296,4.20627,2377.5,2377.0,4.20695]
[1726590336632,4.20627,2377.5,2376.5,2.0]
[1726590336633,0.841236,2377.4,2376.3,4.20811]
[1726590336810,4.2071,2377.0,2376.3,4.20812]
[1726590337012,4.2071,2377.0,2376.5,4.20779]
[1726590337333,4.2071,2377.0,2376.5,4.20778]
[1726590337487,4.20771,2376.6,2376.0,4.20868]
[1726590337690,4.20771,2376.6,2376.1,4.20848]
[1726590337907,4.628,2376.9,2375.9,4.20877]
[1726590338101,4.20709,2377.0,2376.5,4.20777]
[1726590338102,0.53178966,2376.8,2376.5,4.20777]
[1726590338311,0.53178966,2376.8,2376.5,4.20776]
[1726590338536,4.20671,2377.2,2376.7,8.41491]
[1726590338737,4.20671,2377.2,2376.7,4.20741]
[1726590338899,0.420671,2377.1,2376.7,4.2074]
[1726590339290,4.627621,2377.1,2376.0,3.0]
[1726590339536,4.20691,2377.1,2376.2,4.20837]
[1726590339738,4.20745,2376.8,2376.2,4.20831]
[1726590339953,4.20783,2376.6,2376.1,4.20843]
[1726590340298,4.2074,2376.8,2376.2,4.20839]
[1726590340504,4.20716,2376.9,2376.4,4.20791]
[1726590340701,0.841425,2376.9,2376.0,4.20872]
[1726590341003,4.20713,2377.0,2376.5,4.20782]
[1726590341314,4.20706,2377.0,2375.9,3.0]
[1726590341521,4.20781,2376.6,2376.0,3.0]
[1726590341733,4.20769,2376.6,2376.0,3.0]
[1726590342051,5.07214657,2377.1,2375.1,9.71047315]
[1726590342052,4.20818,2376.4,2375.6,4.2093]
[1726590342253,0.420818,2376.3,2375.3,4.20996]
[1726590342418,4.20806,2376.4,2375.7,4.20912]
[1726590342945,4.20806,2376.4,2375.6,4.20945]
[1726590343145,4.20806,2376.4,2375.7,4.20925]
[1726590343349,8.41624,2376.4,2375.6,4.20945]
[1726590343530,4.20806,2376.4,2375.6,8.41882]
[1726590343704,8.4162,2376.4,2375.6,4.20937]
[1726590343905,4.20806,2376.4,2375.6,8.41873]
[1726590344707,11.62783,2376.6,2375.8,4.20908]
[1726590344934,1.24930966,2376.5,2375.9,8.41766]
[1726590345135,4.20769,2376.6,2375.9,4.20883]
[1726590345806,4.2076,2376.7,2376.0,4.2087]
[1726590346436,7.42,2376.8,2375.7,4.20926]
[1726590346606,4.208,2376.5,2375.9,3.0]
[1726590346822,4.208,2376.5,2375.9,7.20891]
[1726590347149,4.20771,2376.6,2375.9,7.20891]
[1726590348208,5.72571328,2376.7,2375.6,4.2094]
[1726590348434,4.20798,2376.5,2375.7,4.2091]
[1726590348686,4.20798,2376.5,2375.8,4.209]
[1726590349446,5.82243133,2376.6,2375.9,4.20889]
[1726590349620,1.61457133,2376.6,2376.0,4.20866]
[1726590349817,1.61457133,2376.6,2375.7,4.20917]
[1726590350124,4.20796,2376.5,2375.9,4.20893]
[1726590350447,4.20796,2376.5,2375.7,4.20917]
[1726590350448,4.20815,2376.4,2375.7,4.20917]
[1726590350750,5.21097713,2376.5,2375.5,7.20952]
[1726590350751,5.21099713,2376.5,2375.5,3.0]
[1726590350952,5.21099713,2376.5,2375.8,8.41812]
[1726590351168,5.21099713,2376.5,2375.8,4.20902]
[1726590351453,1.10333385,2376.4,2375.8,4.20907]
[1726590351620,1.10333385,2376.4,2375.7,4.20919]
[1726590351818,1.10333385,2376.4,2375.8,8.41805]
[1726590352125,10.03018133,2376.6,2375.9,4.20892]
[1726590352325,5.82236133,2376.6,2375.9,4.20892]
[1726590352536,4.20788,2376.5,2375.9,4.20892]
[1726590352736,4.20788,2376.5,2375.8,4.20909]
[1726590352945,5.21088913,2376.5,2375.8,4.20909]
[1726590353549,1.00300913,2376.5,2375.9,4.20891]
[1726590353855,11.62749,2376.8,2375.9,4.20883]
[1726590354024,4.20771,2376.6,2375.9,8.41768]
[1726590354231,4.20771,2376.6,2375.9,8.41767]
[1726590354425,4.20771,2376.6,2376.0,4.20866]
[1726590354922,7.42,2376.8,2376.2,4.20835]
[1726590355149,0.44022525,2377.0,2376.2,4.89718662]
[1726590355461,0.44022525,2377.0,2376.4,3.0]
[1726590355822,7.42,2377.1,2376.3,4.20811]
[1726590355823,11.62681,2377.1,2376.3,4.20811]
[1726590356153,14.002475,2377.1,2376.3,4.20811]
[1726590356372,4.20699,2377.0,2376.2,3.0]
[1726590356577,9.795665,2377.1,2376.2,7.2083]
[1726590356782,5.67640516,2377.0,2376.2,7.2083]
[1726590357233,5.67640516,2377.0,2376.2,11.41659]
[1726590357576,5.67640516,2377.0,2376.3,4.20821]
[1726590358974,5.67638516,2377.0,2376.2,7.20829]
[1726590359127,4.20743,2376.8,2376.0,4.20861]
[1726590359326,1.46928516,2377.0,2375.9,4.20892]
[1726590359573,1.46928516,2377.0,2376.3,4.20822]
[1726590359884,1.30961252,2376.9,2376.2,4.20829]
[1726590360098,1.30961252,2376.9,2376.3,4.2082]
[1726590361301,1.30961252,2376.9,2376.1,4.20846]
[1726590361595,1.18831643,2376.8,2376.2,4.20826]
[1726590361756,4.20711,2377.0,2376.2,4.20826]
[1726590361757,4.20708,2377.0,2376.2,4.20826]
[1726590362188,4.20725,2376.9,2376.2,4.20826]
[1726590362387,4.20708,2377.0,2376.0,4.20863]
[1726590362589,1.24923466,2376.9,2376.0,4.20863]
[1726590362756,5.45649466,2376.9,2376.2,4.20839]
[1726590363364,1.24923466,2376.9,2376.2,8.41678]
[1726590363567,11.62682,2377.1,2376.4,4.20789]
[1726590363907,3.0,2377.1,2376.4,4.20789]
[1726590364108,3.0,2377.2,2376.4,4.20792]
[1726590364262,0.86526657,2377.3,2376.6,8.41508]
[1726590364458,0.86526657,2377.3,2376.6,4.20754]
[1726590364675,6.91538303,2377.3,2376.6,8.41511]
[1726590364860,3.0,2377.2,2376.4,4.20792]
[1726590365083,4.20716,2376.9,2376.2,4.20837]
[1726590365291,0.86526657,2376.9,2376.1,4.2084]
[1726590365463,4.20725,2376.9,2376.1,4.2084]
[1726590365658,1.41767932,2376.8,2376.1,4.2084]
[1726590366001,1.41767932,2376.8,2375.9,4.20885]
[1726590366302,4.20778,2376.6,2375.9,8.41767]
[1726590366459,0.86526657,2376.7,2376.1,4.20857]
[1726590366802,4.20751,2376.7,2376.0,4.2087]
[1726590366962,0.841493,2376.6,2376.0,4.2087]
[1726590368101,5.07261657,2376.8,2376.2,4.20836]
[1726590368306,0.86526657,2376.7,2376.2,4.20836]
[1726590368610,5.07261657,2376.8,2376.2,4.20836]
[1726590368755,4.20755,2376.7,2375.9,4.20878]
[1726590368960,4.20755,2376.7,2375.4,2.0]
[1726590368961,4.20805,2376.4,2375.6,3.0]
[1726590369205,5.13580666,2376.6,2375.4,3.0]
[1726590369206,13.42107323,2376.6,2375.8,4.20902]
[1726590369502,13.42107323,2376.6,2376.0,4.20875]
[1726590369503,13.42105323,2376.6,2376.0,4.20875]
[1726590369810,12.55578666,2376.6,2376.0,4.20875]
[1726590370191,13.42105323,2376.6,2376.0,4.20875]
[1726590370393,9.21328323,2376.6,2376.0,4.20875]
[1726590370714,7.42,2376.6,2376.2,4.2083]
[1726590370857,5.07260657,2376.8,2376.2,4.2083]
[1726590371060,5.07286657,2376.7,2376.1,4.20849]
[1726590371268,0.86526657,2376.6,2376.1,4.20849]
[1726590371468,2.09720542,2376.6,2376.1,4.20849]
[1726590372491,2.09720542,2376.6,2376.2,4.20837]
[1726590372685,1.23193885,2376.6,2376.1,4.20849]
[1726590372893,4.89718662,2376.3,2375.6,4.2093]
[1726590373118,0.48971866,2376.2,2375.7,4.20923]
[1726590373411,0.86526657,2376.4,2375.9,4.20879]
[1726590373828,0.86526657,2376.4,2375.8,8.41802]
[1726590373974,0.86526657,2376.4,2375.9,4.20881]
[1726590374482,1.29847555,2376.5,2375.9,4.20881]
[1726590374483,0.86526657,2376.5,2375.9,4.20881]
[1726590374818,2.36761267,2376.4,2375.9,4.20881]
[1726590375330,0.86526657,2376.3,2375.9,4.20881]
[1726590376284,0.86526657,2376.2,2375.9,8.41765]
[1726590376484,0.86526657,2376.2,2375.9,4.20881]
[1726590376687,0.86526657,2376.3,2375.7,4.20924]
[1726590376988,0.86526657,2376.4,2376.1,4.20852]
[1726590377219,0.86526657,2376.3,2376.0,4.20866]
[1726590377385,0.86526657,2376.3,2375.8,3.0]
[1726590377791,0.86526657,2376.3,2375.9,4.20893]
[1726590377994,0.86526657,2376.2,2375.9,4.20882]
[1726590378183,0.86526657,2376.2,2375.9,8.41767]
[1726590378386,0.86526657,2376.3,2376.0,8.41736]
[1726590378599,0.86526657,2376.3,2376.0,4.20864]
[1726590379031,1.29847555,2376.4,2376.0,4.20864]
[1726590379032,0.86526657,2376.4,2376.1,4.20847]
[1726590379188,0.86526657,2376.3,2376.1,4.20847]
[1726590380292,0.86526657,2376.2,2376.1,4.20847]
[1726590380486,1.29847555,2376.2,2375.8,3.0]
[1726590380727,0.87164791,2376.1,2375.8,3.0]
[1726590380940,0.87164791,2376.1,2375.7,4.20917]
[1726590380941,0.87164791,2376.0,2375.2,3.66760943]
[1726590381084,0.87164791,2375.9,2375.3,7.20995]
[1726590381289,0.87164791,2375.9,2375.7,4.20913]
[1726590381611,0.87164791,2375.8,2375.7,4.20913]
[1726590381810,0.87164791,2375.8,2375.5,4.20949]
[1726590381811,0.87164791,2375.8,2375.6,4.20944]
[1726590382018,0.87164791,2375.8,2375.7,4.20928]
[1726590382233,8.5852457,2375.8,2375.2,0.0379505]
[1726590382541,0.87241563,2375.6,2375.4,4.20981]
[1726590382741,0.87241563,2375.6,2375.5,4.20964]
[1726590383045,0.87241563,2375.7,2375.6,8.41892]
[1726590383250,0.87241563,2375.8,2375.7,8.41856]
[1726590384648,0.87241563,2375.8,2375.7,4.20928]
[1726590385004,0.87256903,2375.8,2375.7,4.20928]
[1726590385208,1.30862345,2375.9,2375.8,4.2091]
[1726590385520,1.30920976,2375.9,2375.8,4.2091]
[1726590386752,1.74070637,2375.9,2375.5,4.20954]
[1726590387049,0.8729338,2375.7,2375.6,8.41892]
[1726590387260,1.3094007,2375.8,2375.7,4.20928]
[1726590387408,1.3094007,2375.9,2375.7,4.20928]
[1726590387601,1.3094007,2375.8,2375.7,4.20928]
[1726590387803,1.3094007,2375.9,2375.8,4.2091]
[1726590388003,1.3094007,2375.9,2375.3,7.20993]
[1726590388004,1.3094007,2375.9,2375.5,4.20963]
[1726590388254,1.3094007,2375.9,2375.5,4.20951]
[1726590388255,0.87319896,2375.6,2375.5,4.20951]
[1726590388410,0.87319896,2375.6,2375.5,11.41915]
[1726590388605,0.87319896,2375.7,2375.6,4.20946]
[1726590388833,1.3094007,2375.8,2375.6,4.20946]
[1726590389141,1.3094007,2375.8,2375.7,4.20928]
[1726590389840,1.3094007,2375.8,2375.6,4.20946]
[1726590390066,0.87371022,2375.7,2375.6,4.20946]
[1726590391171,0.87371022,2375.7,2375.5,4.20951]
[1726590391569,0.87371022,2375.6,2375.5,8.419]
[1726590391867,1.3094007,2375.7,2375.6,4.20946]
[1726590392074,0.87363965,2375.7,2375.6,8.41892]
[1726590392283,0.87363965,2375.7,2375.2,3.0379505]
[1726590392284,1.3094007,2375.7,2375.2,0.0379505]
[1726590392578,0.87357561,2375.6,2375.5,4.20946]
[1726590392868,0.87357561,2375.7,2375.6,4.20946]
[1726590393789,0.87357561,2375.7,2375.6,8.41892]
[1726590394065,0.87357561,2375.9,2375.8,4.2091]
[1726590394232,1.3094007,2376.0,2375.8,4.2091]
[1726590394546,0.87323226,2375.9,2375.8,4.2091]
[1726590394871,1.3094007,2376.0,2375.8,4.2091]
[1726590395075,1.3094007,2375.9,2375.8,4.2091]
[1726590395281,1.3094007,2375.9,2375.6,4.20935]
[1726590395434,0.87325322,2375.7,2375.6,4.20937]
[1726590395874,0.87325322,2375.7,2375.5,4.20956]
[1726590396177,0.87325322,2375.7,2375.6,4.20946]
[1726590396373,0.87325322,2375.7,2375.2,0.0379505]
[1726590396374,1.3094007,2375.7,2375.4,4.2097]
[1726590396586,0.87342457,2375.6,2375.5,4.2095]
[1726590396748,5.64933573,2375.6,2375.2,4.2480005]
[1726590397087,0.87332309,2375.4,2375.2,4.2481005]
[1726590397254,0.87332309,2375.4,2375.2,8.4581505]
[1726590397454,0.87312124,2375.4,2375.3,4.20999]
[1726590398442,0.87312124,2375.5,2375.3,4.20999]
[1726590398841,0.87312124,2375.5,2375.3,4.20985]
[1726590399147,9.93565909,2375.4,2375.2,0.0379505]
[1726590399345,3.80094888,2375.3,2375.2,0.0379505]
[1726590399541,1.30883233,2375.3,2375.2,0.0379505]
[1726590399762,3.7998171,2375.3,2375.2,0.0379505]
[1726590400077,1.308901,2375.3,2375.2,0.0379505]
[1726590400282,3.8002621,2375.3,2375.2,0.0379505]
[1726590400786,4.8233696,2375.3,2374.5,1.29919376]
[1726590400957,4.8233696,2375.3,2373.9,0.07323275]
[1726590400958,10.37678861,2374.6,2373.9,4.21231]
[1726590401333,5.72930544,2374.1,2373.8,0.0395836]
[1726590401494,0.87055022,2374.0,2373.8,0.0395836]
[1726590401782,4.85560294,2373.9,2373.8,0.0395836]
[1726590401940,9.50334805,2373.9,2373.8,0.0395836]
[1726590402138,5.29087805,2373.9,2373.8,0.0395836]
[1726590402466,5.77601565,2373.9,2373.8,0.0395836]
[1726590402679,4.90661639,2373.9,2373.8,0.0395836]
[1726590403660,9.11908639,2373.9,2373.8,0.0395836]
[1726590404058,15.13332508,2373.9,2373.8,0.0395836]
[1726590404574,14.26392582,2373.9,2373.8,0.0395836]
[1726590404892,15.13332508,2373.9,2373.8,0.0395836]
[1726590405110,15.13159035,2373.9,2373.8,0.0395836]
[1726590405313,15.68159035,2373.9,2373.8,0.0395836]
[1726590405620,14.81392582,2373.9,2373.8,0.0395836]
[1726590405776,22.02639582,2373.9,2373.8,0.0395836]
[1726590405975,4.21342,2373.4,2373.1,0.0395836]
[1726590406195,4.21312,2373.6,2373.1,0.0395836]
[1726590406406,4.21328,2373.5,2373.1,0.0395836]
[1726590406571,4.21311,2373.6,2373.1,0.0395836]
[1726590407169,4.21337,2373.4,2373.1,0.0395836]
[1726590407370,0.421337,2373.3,2373.1,0.0395836]
[1726590407619,4.2132,2373.5,2373.1,0.0395836]
[1726590407801,4.21293,2373.7,2373.1,0.0395836]
[1726590408121,4.21301,2373.6,2373.1,0.0395836]
[1726590408304,4.21322,2373.5,2373.1,0.0395836]
[1726590408698,4.21283,2373.7,2373.1,4.2533936]
[1726590409011,4.21301,2373.6,2373.1,0.0395836]
[1726590410396,6.96522599,2373.7,2373.1,4.2533536]
[1726590410810,6.96522599,2373.7,2373.2,4.21371]
[1726590411132,4.21309,2373.6,2373.1,0.0395836]
[1726590411301,0.6965486,2373.5,2373.1,0.0395836]
[1726590412175,0.6965486,2373.5,2373.0,8.4279]
[1726590412176,0.6965486,2373.5,2373.0,8.21965862]
[1726590412676,0.6965486,2373.5,2373.0,8.21963862]
[1726590413216,6.96537599,2373.7,2372.6,4.21468]
[1726590413217,2.75239599,2373.7,2373.1,4.21382]
[1726590413415,2.75239599,2373.7,2373.2,4.21362]
[1726590413584,6.96524599,2373.7,2373.2,4.21362]
[1726590414014,7.42,2373.9,2373.4,4.21327]
[1726590414339,4.21198,2374.2,2373.0,5.0]
[1726590414625,7.42,2374.3,2374.0,4.21229]
[1726590414914,4.21162,2374.4,2373.9,4.21239]
[1726590415152,4.632772,2374.4,2373.9,4.21239]
[1726590415426,4.21152,2374.5,2374.1,4.2121]
[1726590415427,0.44013021,2374.5,2374.1,4.2121]
[1726590415580,4.2111,2374.7,2374.1,4.2121]
[1726590415780,4.21126,2374.6,2374.1,4.2121]
[1726590416424,4.21126,2374.6,2374.1,4.21203]
[1726590416929,4.21116,2374.7,2374.1,4.21203]
[1726590417281,4.21116,2374.7,2374.1,4.21202]
[1726590417505,0.0073036,2374.8,2374.2,0.08423461]
[1726590417727,0.0073036,2374.8,2374.4,4.21147]
[1726590417876,0.0073036,2374.8,2374.2,4.21181]
[1726590418080,0.0073036,2374.8,2374.1,4.21211]
[1726590418081,4.64009296,2374.8,2374.1,4.21211]
[1726590418332,4.64009296,2374.8,2374.0,4.21218]
[1726590418333,4.21132,2374.6,2374.0,4.21218]
[1726590418533,4.21125,2374.6,2374.0,4.21228]
[1726590418823,4.21161,2374.4,2373.3,2.0]
[1726590419032,4.21197,2374.2,2373.6,4.21291]
[1726590419229,4.21197,2374.2,2373.6,8.42582]
[1726590419526,4.21197,2374.2,2373.7,4.21279]
[1726590419694,4.21142,2374.5,2373.8,4.21265]
[1726590420034,4.21182,2374.3,2373.6,4.21283]
[1726590420242,4.2116,2374.4,2373.6,4.21283]
[1726590420401,4.21204,2374.2,2373.6,8.42571]
[1726590420600,4.2117,2374.4,2373.8,4.21256]
[1726590420828,0.42117,2374.3,2373.8,4.21256]
[1726590421024,0.42117,2374.3,2373.3,7.21351]
[1726590421025,4.21203,2374.2,2373.6,4.21291]
[1726590421364,4.21203,2374.2,2373.7,4.21271]
[1726590421544,4.21177,2374.3,2373.7,4.21271]
[1726590421753,4.21205,2374.2,2373.4,4.21323]
[1726590422038,4.21205,2374.2,2373.2,4.21369]
[1726590422248,4.21205,2374.2,2373.5,4.21318]
[1726590422395,4.21205,2374.2,2373.3,3.0]
[1726590422396,1.584374,2374.2,2373.7,4.21282]
[1726590423436,5.796344,2374.2,2373.7,4.21278]
[1726590423737,4.21277,2373.8,2373.3,4.21344]
[1726590423951,4.21277,2373.8,2373.1,4.21375]
[1726590424112,4.634107,2373.7,2373.1,4.21375]
[1726590424317,4.2131,2373.6,2373.1,4.21375]
[1726590424631,4.634107,2373.7,2373.1,4.21375]
[1726590424632,0.421277,2373.7,2373.1,4.21375]
[1726590424829,0.421277,2373.7,2373.1,4.21372]
[1726590425032,0.421277,2373.7,2372.5,2.20401904]
[1726590425033,4.21291,2373.7,2372.9,4.2141]
[1726590425235,4.21291,2373.7,2373.1,4.21379]
[1726590425409,4.21291,2373.7,2373.1,8.42755]
[1726590425609,4.21291,2373.7,2373.1,4.21376]
[1726590425849,4.21362,2373.3,2372.7,4.2145]
[1726590426007,4.21362,2373.3,2372.8,4.21432]
[1726590426008,0.421362,2373.2,2372.8,4.21432]
[1726590426200,0.421362,2373.2,2372.7,4.2145]
[1726590426556,0.421362,2373.2,2372.4,0.0360896]
[1726590426557,4.214,2373.1,2372.4,0.0360896]
[1726590426701,4.21451,2372.8,2372.4,0.0360896]
[1726590426904,5.057387,2372.8,2372.4,0.0360896]
[1726590428271,0.842877,2372.8,2372.4,0.0360896]
[1726590428994,5.057327,2372.8,2372.4,0.0360896]
[1726590429282,9.271847,2372.8,2372.4,0.0360896]
[1726590429486,5.057327,2372.8,2372.4,0.0360896]
[1726590429644,0.5057327,2372.7,2372.4,0.0360896]
[1726590430749,0.842877,2372.8,2372.4,0.0360896]
[1726590430945,7.841362,2373.2,2372.5,4.21486]
[1726590431181,7.841362,2373.2,2372.7,4.2146]
[1726590431443,21.26051215,2373.6,2372.8,4.2144]
[1726590431444,7.42,2373.5,2372.8,4.2144]
[1726590431586,4.21302,2373.6,2372.9,4.21425]
[1726590431769,11.63277,2373.8,2373.0,4.21405]
[1726590432110,11.63277,2373.8,2373.2,4.2136]
[1726590432111,7.42,2373.8,2373.2,4.2136]
[1726590432269,9.07498422,2373.8,2373.2,4.2136]
[1726590432465,9.07498422,2373.8,2373.3,4.21349]
[1726590432666,4.2122,2374.1,2373.3,8.42692]
[1726590432891,7.42,2374.2,2373.5,4.21317]
[1726590433213,7.42,2374.2,2373.1,4.21384]
[1726590433214,7.42,2374.5,2373.8,4.21261]
[1726590433352,0.91291222,2374.3,2373.6,4.2129]
[1726590433758,0.91291222,2374.3,2373.7,4.21282]
[1726590433958,0.91291222,2374.3,2373.8,4.21264]
[1726590434185,4.21115,2374.7,2373.8,4.21264]
[1726590434186,4.21115,2374.7,2373.9,4.21236]
[1726590434506,0.0073036,2374.8,2374.3,4.21176]
[1726590434658,0.0073036,2374.8,2374.5,4.21132]
[1726590434852,0.0073036,2374.8,2374.5,8.4226]
[1726590435094,0.0073036,2374.8,2374.6,4.21107]
[1726590435452,0.0073036,2374.8,2374.2,4.21183]
[1726590435700,0.0073036,2374.8,2374.7,4.21105]
[1726590436578,0.0073036,2374.8,2374.7,8.4221]
[1726590437157,0.0073036,2374.8,2374.7,15.63315]
[1726590438108,0.0073036,2374.8,2374.7,11.4221]
[1726590439154,0.0073036,2374.8,2374.7,15.63315]
[1726590440058,0.0073036,2374.8,2374.7,11.4221]
[1726590440261,0.0073036,2374.8,2374.7,15.63315]
[1726590440559,0.0073036,2374.8,2374.7,11.4221]
[1726590440756,0.0073036,2374.8,2374.7,4.21105]
[1726590441403,0.0073036,2374.8,2374.6,4.21111]
[1726590441608,0.0073036,2374.8,2374.4,4.21143]
[1726590442157,0.0073036,2374.8,2374.4,8.42291]
[1726590442402,0.0073036,2374.8,2374.4,4.21158]
[1726590442736,0.0073036,2374.8,2374.3,4.21176]
[1726590443464,0.0073036,2374.8,2374.2,4.21189]
[1726590444197,5.06115496,2374.8,2374.1,4.21201]
[1726590444804,5.06104496,2374.8,2374.0,4.21217]
[1726590445107,0.85016496,2374.8,2374.2,4.21185]
[1726590445262,0.85016496,2374.8,2374.1,4.21202]
[1726590445598,0.59288496,2374.7,2374.1,4.21202]
[1726590446562,4.80394496,2374.7,2374.0,4.21228]
[1726590446719,5.67178963,2374.7,2373.9,4.21235]
[1726590446883,2.42009437,2374.6,2373.9,4.21235]
[1726590447218,3.1424983,2374.5,2373.5,4.21315]
[1726590447381,3.1424983,2374.5,2373.8,4.21253]
[1726590447382,0.72240393,2374.5,2373.8,4.21253]
[1726590447583,0.72240393,2374.5,2373.9,4.21234]
[1726590447804,0.72240393,2374.5,2374.0,4.21229]
[1726590447971,0.72240393,2374.5,2374.1,4.21197]
[1726590448173,1.46072963,2374.7,2374.3,4.21161]
[1726590448402,1.71800963,2374.8,2373.8,3.55]
[1726590448710,0.0073036,2374.8,2374.4,8.42305]
[1726590448920,0.0073036,2374.8,2373.8,3.55]
[1726590448921,0.0073036,2374.8,2374.6,4.21119]
[1726590449212,0.0073036,2374.8,2374.7,4.21105]
[1726590451493,0.0073036,2374.8,2374.4,4.21147]
[1726590451808,0.0073036,2374.8,2374.7,4.21105]
[1726590452385,0.0073036,2374.8,2374.7,8.4221]
[1726590453039,0.0073036,2374.8,2374.7,4.21105]
[1726590453393,0.0073036,2374.8,2374.6,4.21123]
[1726590453725,0.0073036,2374.8,2374.6,4.21112]
[1726590454531,0.0073036,2374.8,2374.7,4.21105]
[1726590455734,0.0073036,2374.8,2374.7,8.50631692]
[1726590455895,0.0073036,2374.8,2374.7,12.63315]
[1726590456292,0.0073036,2374.8,2374.7,16.8442]
[1726590457813,0.0073036,2374.8,2374.7,15.63315]
[1726590458444,0.0073036,2374.8,2374.7,18.18315]
[1726590459058,0.0073036,2374.8,2374.7,31.98938866]
[1726590459251,0.0073036,2374.8,2374.7,27.77833866]
[1726590460098,0.0073036,2374.8,2374.7,22.3942]
[1726590460754,0.0073036,2374.8,2374.7,31.52267215]
[1726590461600,0.0073036,2374.8,2374.7,31.98938866]
[1726590461805,0.0073036,2374.8,2374.7,27.77833866]
[1726590462251,0.0073036,2374.8,2374.7,22.3942]
[1726590465561,0.0073036,2374.8,2374.7,21.8442]
[1726590466275,0.0073036,2374.8,2374.7,30.97267215]
[1726590466780,7.42,2375.4,2374.7,30.97267215]
[1726590466781,7.42,2375.4,2375.3,15.62997]
[1726590466939,0.0433932,2375.6,2375.5,12.62892]
[1726590467141,0.0433932,2375.6,2375.5,15.62892]
[1726590469296,0.0433932,2375.6,2375.5,20.38856]
[1726590469588,0.0433932,2375.6,2375.5,24.5982]
[1726590469773,0.0433932,2375.6,2375.5,29.604897]
[1726590469981,0.0433932,2375.6,2375.5,24.5982]
[1726590471401,0.0433932,2375.6,2375.5,16.83856]
[1726590471751,0.0433932,2375.6,2375.5,12.62892]
[1726590472497,0.0433932,2375.6,2375.5,8.41928]
[1726590473798,0.0433932,2375.6,2375.5,11.41928]
[1726590474394,7.42,2376.0,2375.8,4.20908]
[1726590474693,0.8045776,2376.0,2375.9,4.20893]
[1726590474876,0.0625776,2376.0,2375.9,8.41786]
[1726590475382,0.0625776,2376.0,2375.9,19.83572]
[1726590475555,0.0625776,2376.0,2375.9,20.38572]
[1726590475755,0.0625776,2376.0,2375.9,24.59465]
[1726590475972,0.0625776,2376.0,2375.9,25.06136651]
[1726590476595,0.0625776,2376.0,2375.9,24.59465]
[1726590479429,0.0625776,2376.0,2375.9,36.29311251]
[1726590480508,0.0625776,2376.0,2375.9,30.52764651]
[1726590480940,0.0625776,2376.0,2375.9,30.06093]
[1726590482224,0.0625776,2376.0,2375.9,23.22354]
[1726590482449,0.0625776,2376.0,2375.9,24.59465]
[1726590482950,0.0625776,2376.0,2375.9,27.410602]
[1726590485026,0.0625776,2376.0,2375.9,23.201672]